fUST/lending_fUST_20250311
["ID","MTS","AMOUNT","RATE_DAILY","PERIOD"]
[355866384,1741653032597,-500.0,0.00044544,2]
[355866386,1741653032609,-500.0,0.00044544,2]
[355866388,1741653032623,-500.0,0.00044544,2]
[355866390,1741653032635,-500.0,0.00044544,2]
[355866392,1741653032646,-500.0,0.00044544,2]
[355866394,1741653032659,-500.0,0.00044544,2]
[355866396,1741653032670,-500.0,0.00044544,2]
[355866398,1741653032680,-500.0,0.00044544,2]
[355866400,1741653032690,-500.0,0.00044544,2]
[355866402,1741653032700,-500.0,0.00044544,2]
[355866404,1741653032710,-500.0,0.00044544,2]
[355866405,1741653032720,-500.0,0.00044544,2]
[355866407,1741653032733,-500.0,0.00044544,2]
[355866408,1741653032744,-500.0,0.00044544,2]
[355866409,1741653032755,-500.0,0.00044544,2]
[355866410,1741653032766,-500.0,0.00044544,2]
[355866411,1741653032776,-500.0,0.00044544,2]
[355866412,1741653032787,-500.0,0.00044544,2]
[355866413,1741653032798,-500.0,0.00044544,2]
[355866414,1741653032807,-500.0,0.00044544,2]
[355866415,1741653032817,-500.0,0.00044544,2]
[355866416,1741653032827,-500.0,0.00044544,2]
[355866417,1741653032836,-500.0,0.00044544,2]
[355866418,1741653032846,-500.0,0.00044544,2]
[355866419,1741653032856,-500.0,0.00044544,2]
[355866420,1741653032866,-500.0,0.00044544,2]
[355866421,1741653032876,-500.0,0.00044544,2]
[355866422,1741653032886,-500.0,0.00044544,2]
[355866423,1741653032897,-500.0,0.00044544,2]
[355866424,1741653032908,-500.0,0.00044544,2]
[355866425,1741653032919,-500.0,0.00044544,2]
[355866426,1741653032929,-500.0,0.00044544,2]
[355866427,1741653032940,-500.0,0.00044544,2]
[355866428,1741653032950,-500.0,0.00044544,2]
[355866429,1741653032960,-500.0,0.00044544,2]
[355866430,1741653032970,-500.0,0.00044544,2]
[355866431,1741653032980,-500.0,0.00044544,2]
[355866432,1741653032992,-500.0,0.00044544,2]
[355866433,1741653033002,-500.0,0.00044544,2]
[355866434,1741653033012,-500.0,0.00044544,2]
[355866435,1741653033023,-500.0,0.00044544,2]
[355866436,1741653033034,-500.0,0.00044544,2]
[355866437,1741653033045,-500.0,0.00044544,2]
[355866438,1741653033055,-500.0,0.00044544,2]
[355866439,1741653033064,-500.0,0.00044544,2]
[355866440,1741653033075,-500.0,0.00044544,2]
[355866441,1741653033085,-500.0,0.00044544,2]
[355866442,1741653033096,-500.0,0.00044544,2]
[355866443,1741653033106,-500.0,0.00044544,2]
[355866444,1741653033116,-500.0,0.00044544,2]
[355866445,1741653033126,-500.0,0.00044544,2]
[355866446,1741653033136,-500.0,0.00044544,2]
[355866447,1741653033147,-500.0,0.00044544,2]
[355866448,1741653033157,-500.0,0.00044544,2]
[355866449,1741653033167,-500.0,0.00044544,2]
[355866450,1741653033179,-500.0,0.00044544,2]
[355866451,1741653033190,-500.0,0.00044544,2]
[355866452,1741653033201,-500.0,0.00044544,2]
[355866453,1741653033212,-500.0,0.00044544,2]
[355866454,1741653033223,-500.0,0.00044544,2]
[355866455,1741653033237,-500.0,0.00044544,2]
[355866456,1741653033248,-596.83412557,0.00044544,2]
[355866457,1741653033259,-596.83412557,0.00044544,2]
[355866458,1741653033270,-596.83412557,0.00044544,2]
[355866459,1741653033281,-596.83412557,0.00044544,2]
[355866460,1741653033291,-596.83412557,0.00044544,2]
[355866461,1741653033302,-596.83412557,0.00044544,2]
[355866462,1741653033312,-596.83412557,0.00044544,2]
[355866463,1741653033323,-596.83412557,0.00044544,2]
[355866464,1741653033333,-596.83412557,0.00044544,2]
[355866465,1741653033344,-596.83412557,0.00044544,2]
[355866466,1741653033355,-596.83412557,0.00044544,2]
[355866467,1741653033365,-596.83412557,0.00044544,2]
[355866468,1741653033375,-596.83412557,0.00044544,2]
[355866469,1741653033385,-596.83412557,0.00044544,2]
[355866470,1741653033395,-596.83412557,0.00044544,2]
[355866471,1741653033405,-596.83412557,0.00044544,2]
[355866472,1741653033416,-596.83412557,0.00044544,2]
[355866473,1741653033426,-596.83412557,0.00044544,2]
[355866474,1741653033438,-596.83412557,0.00044544,2]
[355866475,1741653033448,-596.83412557,0.00044544,2]
[355866476,1741653033458,-596.83412557,0.00044544,2]
[355866477,1741653033469,-596.83412557,0.00044544,2]
[355866478,1741653033480,-596.83412557,0.00044544,2]
[355866479,1741653033494,-596.83412557,0.00044544,2]
[355866480,1741653033505,-596.83412557,0.00044544,2]
[355866481,1741653033516,-596.83412557,0.00044544,2]
[355866482,1741653033527,-596.83412557,0.00044544,2]
[355866483,1741653033538,-596.83412557,0.00044544,2]
[355866484,1741653033549,-596.83412557,0.00044544,2]
[355866485,1741653033559,-596.83412557,0.00044544,2]
[355866486,1741653033571,-596.83412557,0.00044544,2]
[355866487,1741653033583,-596.83412557,0.00044544,2]
[355866488,1741653033595,-160.0,0.00044545,3]
[355866489,1741653033606,-67158.2759847,0.00044545,3]
[355866490,1741653033621,-249.63951077,0.00044545,3]
[355866491,1741653033632,-164.51,0.00044554,7]
[355866492,1741653033643,-164.51,0.00044554,7]
[355866493,1741653033654,-164.51,0.00044554,7]
[355866494,1741653033669,-164.51,0.00044554,7]
[355866495,1741653033680,-164.51,0.00044554,7]
[355866496,1741653033692,-164.51,0.00044554,7]
[355866497,1741653033703,-170.00661701,0.00044555,3]
[355866498,1741653033735,-23965.50720036,0.00044555,3]
[355866503,1741653037840,-165.77,0.00044435,2]
[355866504,1741653037851,-165.77,0.00044445,2]
[355866505,1741653037862,-165.77,0.00044514,2]
[355866506,1741653037873,-165.77,0.00044514,2]
[355866507,1741653037884,-165.77,0.00044514,2]
[355866508,1741653037894,-165.77,0.00044524,2]
[355866509,1741653037904,-183.9208534,0.00044533,31]
[355866510,1741653037915,-500.0,0.00044533,120]
[355866511,1741653037925,-266.8069655,0.00044533,120]
[355866512,1741653037935,-329.99262467,0.00044533,120]
[355866513,1741653037946,-500.0,0.00044533,31]
[355866514,1741653037957,-2592.64481246,0.00044555,3]
[355866515,1741653037970,-827.55484812,0.00044555,3]
[355866516,1741653037992,-106760.83849105,0.00044555,3]
[355866517,1741653038004,-499.27902154,0.00044555,3]
[355866518,1741653038015,-160.0,0.00044558,2]
[355866519,1741653038026,-5762.83193634,0.00044559,2]
[355866520,1741653038037,-880.0,0.00044562,120]
[355866521,1741653038047,-67158.2759847,0.00044564,3]
[355866522,1741653038058,-249.63951077,0.00044564,3]
[355866523,1741653038069,-880.0,0.00044573,120]
[355866524,1741653038080,-974.7259344,0.00044574,2]
[355866525,1741653038090,-67158.2759847,0.00044576,3]
[355866526,1741653038100,-249.63951077,0.00044576,3]
[355866527,1741653038110,-780.0,0.00044585,120]
[355866528,1741653038121,-500.0,0.00044585,2]
[355866530,1741653038131,-500.0,0.00044585,2]
[355866532,1741653038141,-500.0,0.00044585,2]
[355866533,1741653038151,-500.0,0.00044585,2]
[355866534,1741653038161,-500.0,0.00044585,2]
[355866535,1741653038171,-500.0,0.00044585,2]
[355866536,1741653038181,-500.0,0.00044585,2]
[355866537,1741653038191,-500.0,0.00044585,2]
[355866538,1741653038201,-151.0,0.00044585,120]
[355866539,1741653038211,-151.0,0.00044585,120]
[355866540,1741653038221,-500.0,0.00044585,2]
[355866541,1741653038233,-151.0,0.00044585,120]
[355866542,1741653038246,-151.0,0.00044585,120]
[355866543,1741653038258,-500.0,0.00044585,2]
[355866544,1741653038268,-151.0,0.00044585,120]
[355866545,1741653038279,-500.0,0.00044585,2]
[355866546,1741653038289,-151.0,0.00044585,120]
[355866547,1741653038299,-500.0,0.00044585,2]
[355866548,1741653038309,-151.0,0.00044585,120]
[355866549,1741653038320,-500.0,0.00044585,2]
[355866550,1741653038331,-151.0,0.00044585,120]
[355866551,1741653038341,-500.0,0.00044585,2]
[355866552,1741653038351,-151.0,0.00044585,120]
[355866553,1741653038361,-500.0,0.00044585,2]
[355866554,1741653038371,-500.0,0.00044585,2]
[355866555,1741653038381,-151.0,0.00044585,120]
[355866556,1741653038390,-151.0,0.00044585,120]
[355866557,1741653038401,-151.0,0.00044585,120]
[355866558,1741653038411,-151.0,0.00044585,120]
[355866559,1741653038421,-264.203879,0.00044585,120]
[355866561,1741653038432,-151.0,0.00044585,120]
[355866563,1741653038443,-151.0,0.00044585,120]
[355866565,1741653038452,-151.0,0.00044585,120]
[355866567,1741653038463,-151.0,0.00044585,120]
[355866568,1741653038473,-151.0,0.00044585,120]
[355866569,1741653038487,-152.895504,0.00044585,120]
[355866570,1741653038497,-166.0038,0.00044585,120]
[355866571,1741653038508,-166.0038,0.00044585,120]
[355866572,1741653038518,-166.0038,0.00044585,120]
[355866573,1741653038529,-166.0038,0.00044585,120]
[355866574,1741653038539,-166.0038,0.00044585,120]
[355866576,1741653038549,-166.0038,0.00044585,120]
[355866578,1741653038559,-166.0038,0.00044585,120]
[355866580,1741653038569,-166.0038,0.00044585,120]
[355866582,1741653038579,-166.0038,0.00044585,120]
[355866584,1741653038590,-166.0038,0.00044585,120]
[355866586,1741653038600,-166.0038,0.00044585,120]
[355866588,1741653038611,-166.0038,0.00044585,120]
[355866590,1741653038624,-166.0038,0.00044585,120]
[355866592,1741653038634,-166.0038,0.00044585,120]
[355866594,1741653038644,-166.0038,0.00044585,120]
[355866596,1741653038654,-166.0038,0.00044585,120]
[355866598,1741653038668,-166.0038,0.00044585,120]
[355866600,1741653038678,-166.0038,0.00044585,120]
[355866602,1741653038688,-500.0,0.00044586,2]
[355866604,1741653038698,-500.0,0.00044586,2]
[355866606,1741653038707,-500.0,0.00044587,2]
[355866608,1741653038717,-151.0,0.00044587,120]
[355866610,1741653038727,-500.0,0.00044587,2]
[355866612,1741653038740,-166.0038,0.00044587,120]
[355866615,1741653038751,-166.003807,0.00044587,120]
[355866617,1741653038762,-480.0,0.00044628,120]
[355866619,1741653038771,-680.0,0.0004463,120]
[355866621,1741653038781,-160.44305201,0.0004463,120]
[355866625,1741653038999,-416.66666667,0.00044658,10]
[355866626,1741653039010,-880.0,0.0004467,120]
[355866627,1741653039020,-880.0,0.0004467,120]
[355866628,1741653039030,-580.0,0.00044672,120]
[355866629,1741653039040,-5762.83193634,0.00044673,2]
[355866630,1741653039051,-478.88073897,0.00044673,10]
[355866631,1741653039061,-500.0,0.00044673,10]
[355866632,1741653039071,-160.0,0.00044673,2]
[355866633,1741653039083,-500.0,0.00044673,5]
[355866634,1741653039093,-740.0,0.00044675,120]
[355866635,1741653039104,-416.66666667,0.00044676,3]
[355866636,1741653039114,-15568.29314569,0.00044676,3]
[355866637,1741653039125,-249.63951077,0.00044677,3]
[355866638,1741653039136,-238.141636,0.00044678,120]
[355866639,1741653039147,-238.141636,0.00044678,120]
[355866640,1741653039159,-151.0,0.00044678,120]
[355866641,1741653039171,-151.0,0.00044678,120]
[355866642,1741653039183,-151.930998,0.00044678,7]
[355866643,1741653039194,-345.775452,0.00044678,120]
[355866644,1741653039206,-345.775452,0.00044678,120]
[355866645,1741653039219,-174.785606,0.00044678,120]
[355866646,1741653039230,-465.028969,0.00044678,120]
[355866647,1741653039247,-465.028969,0.00044678,120]
[355866648,1741653039259,-500.0,0.00044686,10]
[355866649,1741653039271,-238.141636,0.00044686,120]
[355866650,1741653039284,-238.141636,0.00044686,120]
[355866651,1741653039296,-238.141636,0.00044686,120]
[355866652,1741653039307,-238.141636,0.00044686,120]
[355866653,1741653039319,-238.141636,0.00044686,120]
[355866654,1741653039330,-238.141636,0.00044686,120]
[355866655,1741653039341,-238.141636,0.00044686,120]
[355866656,1741653039351,-238.141636,0.00044686,120]
[355866657,1741653039362,-238.141636,0.00044686,120]
[355866658,1741653039373,-238.141636,0.00044686,120]
[355866659,1741653039383,-238.141636,0.00044686,120]
[355866660,1741653039394,-238.141636,0.00044686,120]
[355866661,1741653039404,-238.141636,0.00044686,120]
[355866662,1741653039415,-238.141636,0.00044686,120]
[355866663,1741653039425,-151.0,0.00044686,120]
[355866664,1741653039435,-153.984701,0.00044686,120]
[355866665,1741653039445,-151.0,0.00044686,120]
[355866666,1741653039456,-151.0,0.00044686,120]
[355866668,1741653039467,-267.572226,0.00044686,120]
[355866670,1741653039478,-345.775452,0.00044686,120]
[355866671,1741653039493,-345.775452,0.00044686,120]
[355866672,1741653039504,-345.775452,0.00044686,120]
[355866673,1741653039514,-345.775452,0.00044686,120]
[355866674,1741653039524,-345.775452,0.00044686,120]
[355866675,1741653039534,-345.775452,0.00044686,120]
[355866676,1741653039544,-345.775452,0.00044686,120]
[355866677,1741653039555,-345.775452,0.00044686,120]
[355866678,1741653039565,-345.775452,0.00044686,120]
[355866679,1741653039576,-345.775452,0.00044686,120]
[355866680,1741653039587,-345.775452,0.00044686,120]
[355866681,1741653039597,-345.775452,0.00044686,120]
[355866682,1741653039607,-345.775452,0.00044686,120]
[355866683,1741653039620,-345.775452,0.00044686,120]
[355866684,1741653039631,-465.028969,0.00044686,120]
[355866685,1741653039641,-465.028969,0.00044686,120]
[355866686,1741653039651,-465.028969,0.00044686,120]
[355866687,1741653039663,-465.028969,0.00044686,120]
[355866688,1741653039676,-465.028969,0.00044686,120]
[355866689,1741653039686,-465.028969,0.00044686,120]
[355866690,1741653039695,-465.028969,0.00044686,120]
[355866691,1741653039705,-465.028969,0.00044686,120]
[355866692,1741653039715,-465.028969,0.00044686,120]
[355866693,1741653039725,-465.028969,0.00044686,120]
[355866694,1741653039736,-465.028969,0.00044686,120]
[355866695,1741653039747,-465.028969,0.00044686,120]
[355866696,1741653039757,-465.028969,0.00044686,120]
[355866697,1741653039767,-465.028969,0.00044686,120]
[355866698,1741653039778,-238.141636,0.00044687,120]
[355866699,1741653039788,-238.141636,0.00044687,120]
[355866700,1741653039798,-238.141636,0.00044687,120]
[355866701,1741653039808,-238.141633,0.00044687,120]
[355866702,1741653039818,-345.775452,0.00044687,120]
[355866703,1741653039827,-345.775452,0.00044687,120]
[355866704,1741653039838,-345.775452,0.00044687,120]
[355866705,1741653039847,-345.775452,0.00044687,120]
[355866706,1741653039859,-7188.49,0.00044687,120]
[355866707,1741653039870,-465.028969,0.00044687,120]
[355866708,1741653039881,-465.028969,0.00044687,120]
[355866709,1741653039892,-465.028969,0.00044687,120]
[355866710,1741653039904,-465.028969,0.00044687,120]
[355866711,1741653039915,-466.77045757,0.00044688,15]
[355866712,1741653039925,-151.0,0.00044688,120]
[355866713,1741653039935,-151.0,0.00044688,120]
[355866714,1741653039946,-153.415956,0.00044688,120]
[355866715,1741653039955,-151.0,0.00044688,120]
[355866716,1741653039965,-151.0,0.00044688,120]
[355866717,1741653039975,-151.0,0.00044688,120]
[355866718,1741653039988,-151.0,0.00044688,120]
[355866719,1741653039998,-5762.83193634,0.00044786,2]
[355866720,1741653040011,-500.0,0.00044792,10]
[355866721,1741653040022,-500.0,0.00044792,10]
[355866722,1741653040033,-500.0,0.00044792,10]
[355866723,1741653040043,-500.0,0.00044792,10]
[355866724,1741653040053,-154.05608052,0.00044792,10]
[355866725,1741653040062,-501.70277733,0.00044792,10]
[355866726,1741653040073,-500.0,0.00044792,10]
[355866727,1741653040083,-500.0,0.00044792,10]
[355866728,1741653040092,-500.0,0.00044792,7]
[355866729,1741653040102,-645.0775604,0.00044814,2]
[355866730,1741653040112,-720.0,0.00044868,120]
[355866731,1741653040121,-780.0,0.0004487,120]
[355866732,1741653040131,-5762.83193634,0.000449,2]
[355866733,1741653040141,-880.0,0.00044999,120]
[355866734,1741653040151,-835.76,0.00045,120]
[355866735,1741653040161,-4000.0,0.00045,20]
[355866736,1741653040171,-300.0,0.00045,5]
[355866737,1741653040181,-2734.35609174,0.00045079,2]
[355866738,1741653040191,-159.820935,0.00045081,2]
[355866739,1741653040202,-451.08243273,0.0004509,120]
[355866740,1741653040211,-172.476,0.0004509,72]
[355866742,1741653040221,-172.43223609,0.0004509,72]
[355866745,1741653040230,-160.44305201,0.00045205,120]
[355866746,1741653040242,-680.0,0.000453,120]
[355866747,1741653040251,-720.0,0.0004534,120]
[355866748,1741653040262,-151.0,0.0004534,120]
[355866749,1741653040271,-151.0,0.0004534,120]
[355866750,1741653040282,-151.0,0.0004534,120]
[355866751,1741653040292,-286.514014,0.0004534,120]
[355866752,1741653040302,-151.0,0.0004534,120]
[355866753,1741653040311,-151.0,0.0004534,120]
[355866754,1741653040321,-151.0,0.0004535,120]
[355866755,1741653040330,-151.0,0.0004535,120]
[355866756,1741653040340,-151.0,0.0004535,120]
[355866757,1741653040349,-151.0,0.0004535,120]
[355866758,1741653040359,-180.802991,0.0004535,120]
[355866759,1741653040368,-151.0,0.0004535,120]
[355866760,1741653040378,-151.0,0.0004535,120]
[355866761,1741653040388,-151.0,0.0004535,120]
[355866762,1741653040398,-151.0,0.0004535,120]
[355866763,1741653040407,-151.0,0.0004535,120]
[355866764,1741653040417,-151.0,0.0004535,120]
[355866765,1741653040427,-151.0,0.0004535,120]
[355866766,1741653040436,-151.0,0.0004535,120]
[355866767,1741653040445,-151.0,0.0004535,120]
[355866768,1741653040455,-151.0,0.0004535,120]
[355866769,1741653040465,-151.0,0.0004535,120]
[355866770,1741653040475,-151.0,0.0004535,120]
[355866771,1741653040486,-151.0,0.0004535,120]
[355866772,1741653040495,-151.0,0.0004535,120]
[355866773,1741653040505,-151.0,0.0004535,120]
[355866774,1741653040514,-151.0,0.0004535,120]
[355866775,1741653040524,-151.0,0.0004535,120]
[355866776,1741653040534,-151.0,0.0004535,120]
[355866777,1741653040543,-151.0,0.0004535,120]
[355866778,1741653040553,-151.0,0.0004535,120]
[355866779,1741653040562,-151.0,0.0004535,120]
[355866780,1741653040572,-151.0,0.0004535,120]
[355866781,1741653040582,-166.944484,0.0004535,120]
[355866782,1741653040591,-351.388336,0.00045352,120]
[355866783,1741653040600,-351.388336,0.00045352,120]
[355866784,1741653040609,-235.036108,0.00045352,120]
[355866785,1741653040623,-235.036108,0.00045352,120]
[355866786,1741653040632,-416.66666667,0.00045352,120]
[355866787,1741653040642,-151.0,0.00045352,120]
[355866788,1741653040652,-249.63951077,0.0004539,3]
[355866789,1741653040663,-500.0,0.000454,10]
[355866790,1741653040673,-151.02734414,0.000454,10]
[355866791,1741653040683,-539.66872395,0.00045439,28]
[355866792,1741653040692,-175.17679623,0.00045684,2]
[355866793,1741653040702,-160.44305201,0.00045808,120]
[355866794,1741653040712,-403.3453858,0.00045918,30]
[355866795,1741653040721,-155.3619476,0.00045918,30]
[355866796,1741653040731,-155.3619476,0.00045918,30]
[355866797,1741653040742,-190012.70223462,0.00045941,2]
[355866798,1741653040752,-780.0,0.00045998,120]
[355866799,1741653040761,-797.55026877,0.00046,120]
[355866800,1741653040771,-2000.0,0.00046,30]
[355866801,1741653040781,-7188.49,0.00046056,120]
[355866802,1741653040791,-179.42331514,0.00046215,30]
[355866803,1741653040800,-416.66666667,0.00046247,2]
[355866804,1741653040811,-1533.0,0.0004629,120]
[355866805,1741653040820,-880.0,0.0004629,120]
[355866806,1741653040830,-880.0,0.00046293,120]
[355866807,1741653040839,-1248.19755385,0.00046295,4]
[355866808,1741653040849,-151.0,0.000463,30]
[355866809,1741653040859,-222000.0,0.00046305,2]
[355866810,1741653040868,-200.0,0.00046315,30]
[355866811,1741653040877,-268.3953007,0.00046373,10]
[355866812,1741653040887,-500.0,0.00046373,10]
[355866814,1741653040897,-172.30583325,0.00046373,10]
[355866815,1741653040907,-500.0,0.00046373,10]
[355866816,1741653040916,-225.389919,0.00046373,10]
[355866817,1741653040926,-502.28483876,0.00046373,5]
[355866818,1741653040935,-500.0,0.00046373,10]
[355866819,1741653040945,-500.0,0.00046373,10]
[355866820,1741653040955,-500.0,0.00046373,10]
[355866821,1741653040965,-500.0,0.00046373,10]
[355866822,1741653040975,-500.0,0.00046373,10]
[355866823,1741653040985,-609.06455129,0.00046373,10]
[355866835,1741653041158,-500.0,0.00046373,10]
[355866836,1741653041169,-500.0,0.00046373,10]
[355866837,1741653041179,-500.0,0.00046373,10]
[355866838,1741653041189,-500.0,0.00046373,5]
[355866839,1741653041200,-500.0,0.00046373,10]
[355866840,1741653041210,-500.0,0.00046373,10]
[355866841,1741653041220,-500.0,0.00046373,10]
[355866842,1741653041230,-502.29169795,0.00046373,10]
[355866843,1741653041244,-151.0,0.00046377,2]
[355866844,1741653041255,-600.0,0.00046377,2]
[355866845,1741653041266,-160.44305201,0.00046384,120]
[355866846,1741653041278,-151.0,0.00046405,120]
[355866847,1741653041290,-151.0,0.00046405,120]
[355866848,1741653041302,-151.0,0.00046405,120]
[355866849,1741653041313,-151.0,0.00046405,120]
[355866850,1741653041323,-151.0,0.00046405,120]
[355866851,1741653041334,-151.0,0.00046405,120]
[355866852,1741653041344,-151.0,0.00046405,120]
[355866853,1741653041355,-151.0,0.00046405,120]
[355866854,1741653041365,-202.404899,0.00046405,120]
[355866855,1741653041374,-324.010013,0.00046405,120]
[355866856,1741653041384,-324.010013,0.00046405,120]
[355866857,1741653041394,-324.010013,0.00046405,120]
[355866858,1741653041404,-324.010013,0.00046405,120]
[355866859,1741653041414,-324.010013,0.00046405,120]
[355866860,1741653041424,-324.010013,0.00046405,120]
[355866861,1741653041434,-324.010013,0.00046405,120]
[355866862,1741653041443,-324.010013,0.00046405,120]
[355866863,1741653041452,-151.0,0.00046405,120]
[355866864,1741653041462,-324.010013,0.00046405,120]
[355866865,1741653041472,-151.0,0.00046405,120]
[355866866,1741653041482,-324.010013,0.00046405,120]
[355866867,1741653041496,-164.682165,0.00046405,120]
[355866868,1741653041505,-324.010013,0.00046405,120]
[355866869,1741653041514,-324.010013,0.00046405,120]
[355866870,1741653041524,-324.010013,0.00046405,120]
[355866871,1741653041533,-324.010013,0.00046405,120]
[355866872,1741653041543,-324.010013,0.00046405,120]
[355866873,1741653041553,-324.010013,0.00046405,120]
[355866874,1741653041563,-351.388336,0.00046405,120]
[355866875,1741653041574,-351.388336,0.00046405,120]
[355866876,1741653041584,-351.388336,0.00046405,120]
[355866877,1741653041595,-351.388336,0.00046405,120]
[355866878,1741653041605,-394.807693,0.00046405,120]
[355866879,1741653041617,-351.388336,0.00046405,120]
[355866880,1741653041629,-394.807693,0.00046405,120]
[355866881,1741653041638,-351.388336,0.00046405,120]
[355866882,1741653041648,-394.807693,0.00046405,120]
[355866883,1741653041658,-351.388336,0.00046405,120]
[355866885,1741653041672,-394.807693,0.00046405,120]
[355866886,1741653041681,-394.807693,0.00046405,120]
[355866887,1741653041691,-394.807693,0.00046405,120]
[355866888,1741653041701,-351.388336,0.00046405,120]
[355866889,1741653041712,-394.807691,0.00046405,120]
[355866890,1741653041722,-351.388336,0.00046405,120]
[355866891,1741653041732,-351.388336,0.00046405,120]
[355866892,1741653041745,-351.388336,0.00046405,120]
[355866893,1741653041756,-351.388336,0.00046405,120]
[355866894,1741653041766,-351.388336,0.00046405,120]
[355866895,1741653041776,-351.388336,0.00046405,120]
[355866896,1741653041787,-351.388336,0.00046405,120]
[355866897,1741653041797,-351.388336,0.00046405,120]
[355866898,1741653041807,-351.388336,0.00046405,120]
[355866899,1741653041817,-351.38834,0.00046405,120]
[355866900,1741653041827,-235.036108,0.00046405,120]
[355866901,1741653041836,-235.036108,0.00046405,120]
[355866902,1741653041847,-235.036108,0.00046405,120]
[355866903,1741653041856,-235.036108,0.00046405,120]
[355866904,1741653041869,-235.036108,0.00046405,120]
[355866905,1741653041878,-235.036108,0.00046405,120]
[355866906,1741653041889,-235.036108,0.00046405,120]
[355866907,1741653041899,-235.036108,0.00046405,120]
[355866908,1741653041909,-235.036108,0.00046405,120]
[355866909,1741653041919,-235.036108,0.00046405,120]
[355866910,1741653041930,-235.036108,0.00046405,120]
[355866911,1741653041940,-235.036108,0.00046405,120]
[355866912,1741653041951,-235.036108,0.00046405,120]
[355866913,1741653041962,-235.036108,0.00046405,120]
[355866914,1741653041973,-235.036108,0.00046405,120]
[355866915,1741653041984,-235.036108,0.00046405,120]
[355866916,1741653042001,-235.036108,0.00046405,120]
[355866917,1741653042012,-235.03611,0.00046405,120]
[355866918,1741653042023,-151.0,0.00046405,120]
[355866919,1741653042034,-151.0,0.00046405,120]
[355866920,1741653042045,-151.0,0.00046405,120]
[355866921,1741653042056,-151.0,0.00046405,120]
[355866922,1741653042067,-151.0,0.00046405,120]
[355866923,1741653042078,-151.0,0.00046406,120]
[355866924,1741653042088,-324.010013,0.00046406,120]
[355866925,1741653042099,-324.010013,0.00046406,120]
[355866926,1741653042112,-622.2,0.00046432,2]
[355866927,1741653042123,-539.66872395,0.00046433,28]
[355866928,1741653042132,-500.0,0.00046473,10]
[355866929,1741653042143,-500.0,0.00046473,10]
[355866930,1741653042153,-500.0,0.00046473,7]
[355866931,1741653042163,-500.0,0.00046473,10]
[355866932,1741653042174,-645.2214,0.00046487,2]
[355866933,1741653042185,-606.36,0.000465,30]
[355866934,1741653042196,-669.0945918,0.00046542,2]
[355866935,1741653042206,-151.0,0.00046555,120]
[355866936,1741653042217,-324.010013,0.00046555,120]
[355866937,1741653042227,-324.010011,0.00046555,120]
[355866938,1741653042244,-249.63951077,0.00046565,4]
[355866939,1741653042255,-680.0,0.00046568,120]
[355866940,1741653042266,-880.0,0.0004657,120]
[355866941,1741653042277,-151.0,0.00046575,120]
[355866942,1741653042289,-294.880595,0.00046575,120]
[355866943,1741653042301,-500.0,0.00046575,120]
[355866944,1741653042312,-151.0,0.00046575,120]
[355866945,1741653042324,-151.0,0.00046575,120]
[355866946,1741653042335,-14999.999999,0.00046575,10]
[355866948,1741653042347,-538.13232083,0.0004658,120]
[355866950,1741653042359,-538.13232083,0.0004658,120]
[355866951,1741653042370,-538.13232083,0.0004658,120]